fUSD/lending_fUSD_20250126
["ID","MTS","AMOUNT","RATE_DAILY","PERIOD"]
[350496941,1737927047217,-500.0,0.00011999,2]
[350496942,1737927047227,-500.0,0.00011999,2]
[350496943,1737927047237,-500.0,0.00011999,2]
[350496944,1737927047246,-437.98,0.00011999,2]
[350496945,1737927047255,-500.0,0.00011999,2]
[350496946,1737927047265,-500.0,0.00011999,2]
[350496947,1737927047275,-500.0,0.00011999,2]
[350496948,1737927047284,-500.0,0.00011999,2]
[350496949,1737927047294,-564.87,0.00011999,2]
[350496950,1737927047304,-500.0,0.00011999,2]
[350496951,1737927047315,-414.47784148,0.00011999,2]
[350496952,1737927047324,-1000.0,0.00011999,2]
[350496953,1737927047334,-416.3609656,0.00011999,2]
[350496954,1737927047343,-500.0,0.00011999,2]
[350496955,1737927047353,-500.0,0.00011999,2]
[350496956,1737927047362,-171.52,0.00011999,2]
[350496957,1737927047372,-500.0,0.00011999,2]
[350496958,1737927047381,-500.0,0.00011999,2]
[350496959,1737927047391,-434.17,0.00011999,2]
[350496960,1737927047402,-500.0,0.00011999,2]
[350496961,1737927047411,-500.0,0.00011999,2]
[350496962,1737927047421,-500.0,0.00011999,2]
[350496963,1737927047431,-500.0,0.00011999,2]
[350496964,1737927047479,-500.0,0.00011999,2]
[350496965,1737927047488,-536.68,0.00011999,2]
[350496966,1737927047498,-391.01629222,0.00011999,2]
[350496967,1737927047507,-500.0,0.00011999,2]
[350496968,1737927047517,-500.0,0.00011999,2]
[350496969,1737927047527,-479.27772572,0.00011999,2]
[350496970,1737927047536,-500.0,0.00011999,2]
[350496971,1737927047547,-500.0,0.00011999,2]
[350496972,1737927047556,-500.0,0.00011999,2]
[350496973,1737927047567,-500.0,0.00011999,2]
[350496974,1737927047577,-500.0,0.00011999,2]
[350496975,1737927047587,-500.0,0.00011999,2]
[350496976,1737927047596,-500.0,0.00011999,2]
[350496977,1737927047606,-395.6,0.00011999,2]
[350496978,1737927047615,-500.0,0.00011999,2]
[350496979,1737927047625,-500.0,0.00011999,2]
[350496980,1737927047634,-500.0,0.00011999,2]
[350496981,1737927047644,-500.0,0.00011999,2]
[350496982,1737927047653,-500.0,0.00011999,2]
[350496983,1737927047664,-500.0,0.00011999,2]
[350496984,1737927047673,-344.92,0.00011999,2]
[350496985,1737927047683,-500.0,0.00011999,2]
[350496986,1737927047694,-500.0,0.00011999,2]
[350496987,1737927047703,-500.0,0.00011999,2]
[350496988,1737927047713,-500.0,0.00011999,2]
[350496989,1737927047722,-500.0,0.00011999,2]
[350496990,1737927047732,-500.0,0.00011999,2]
[350496991,1737927047742,-500.0,0.00011999,2]
[350496992,1737927047752,-500.0,0.00011999,2]
[350496993,1737927047762,-500.0,0.00011999,2]
[350496994,1737927047774,-500.0,0.00011999,2]
[350496995,1737927047784,-242.68437829,0.00011999,2]
[350496996,1737927047793,-500.0,0.00011999,2]
[350496997,1737927047803,-500.0,0.00011999,2]
[350496998,1737927047812,-500.0,0.00011999,2]
[350496999,1737927047823,-500.0,0.00011999,2]
[350497000,1737927047832,-500.0,0.00011999,2]
[350497001,1737927047842,-500.0,0.00011999,2]
[350497002,1737927047851,-617.58039651,0.00011999,2]
[350497003,1737927047861,-500.0,0.00011999,2]
[350497004,1737927047870,-500.0,0.00011999,2]
[350497005,1737927047879,-500.0,0.00011999,2]
[350497006,1737927047889,-385.52,0.00011999,2]
[350497007,1737927047898,-284.08,0.00011999,2]
[350497008,1737927047908,-500.0,0.00011999,2]
[350497009,1737927047918,-500.0,0.00011999,2]
[350497010,1737927047927,-500.0,0.00011999,2]
[350497011,1737927047937,-500.0,0.00011999,2]
[350497012,1737927047947,-500.0,0.00011999,2]
[350497013,1737927047956,-164.46189345,0.00011999,2]
[350497014,1737927047965,-500.0,0.00011999,2]
[350497015,1737927047975,-500.0,0.00011999,2]
[350497016,1737927047985,-500.0,0.00011999,2]
[350497017,1737927047994,-500.0,0.00011999,2]
[350497018,1737927048004,-500.0,0.00011999,2]
[350497019,1737927048014,-500.0,0.00011999,2]
[350497020,1737927048023,-500.0,0.00011999,2]
[350497021,1737927048033,-643.42393927,0.00011999,2]
[350497022,1737927048042,-500.0,0.00011999,2]
[350497023,1737927048051,-500.0,0.00011999,2]
[350497024,1737927048062,-500.0,0.00011999,2]
[350497025,1737927048072,-500.0,0.00011999,2]
[350497026,1737927048081,-266.91636395,0.00011999,2]
[350497027,1737927048090,-500.0,0.00011999,2]
[350497028,1737927048100,-500.0,0.00011999,2]
[350497029,1737927048110,-500.0,0.00011999,2]
[350497030,1737927048119,-500.0,0.00011999,2]
[350497031,1737927048129,-500.0,0.00011999,2]
[350497032,1737927048140,-500.0,0.00011999,2]
[350497033,1737927048150,-500.0,0.00011999,2]
[350497034,1737927048159,-505.01036761,0.00011999,2]
[350497035,1737927048169,-500.0,0.00011999,2]
[350497036,1737927048179,-500.0,0.00011999,2]
[350497037,1737927048189,-500.0,0.00011999,2]
[350497038,1737927048198,-500.0,0.00011999,2]
[350497039,1737927048208,-638.2,0.00011999,2]
[350497040,1737927048218,-500.0,0.00011999,2]
[350497041,1737927048228,-500.0,0.00011999,2]
[350497042,1737927048238,-500.0,0.00011999,2]
[350497043,1737927048247,-365.63264962,0.00011999,2]
[350497044,1737927048256,-500.0,0.00011999,2]
[350497045,1737927048266,-500.0,0.00011999,2]
[350497046,1737927048276,-500.0,0.00011999,2]
[350497047,1737927048285,-500.0,0.00011999,2]
[350497048,1737927048295,-500.0,0.00011999,2]
[350497049,1737927048305,-500.0,0.00011999,2]
[350497050,1737927048315,-175.61016679,0.00011999,2]
[350497051,1737927048324,-500.0,0.00011999,2]
[350497052,1737927048334,-500.0,0.00011999,2]
[350497053,1737927048343,-500.0,0.00011999,2]
[350497054,1737927048353,-608.4,0.00011999,2]
[350497055,1737927048363,-500.0,0.00011999,2]
[350497056,1737927048373,-500.0,0.00011999,2]
[350497057,1737927048382,-500.0,0.00011999,2]
[350497058,1737927048391,-500.0,0.00011999,2]
[350497059,1737927048400,-500.0,0.00011999,2]
[350497060,1737927048409,-500.0,0.00011999,2]
[350497061,1737927048418,-500.0,0.00011999,2]
[350497062,1737927048428,-500.0,0.00011999,2]
[350497063,1737927048437,-223.14,0.00011999,2]
[350497064,1737927048447,-500.0,0.00011999,2]
[350497065,1737927048456,-500.0,0.00011999,2]
[350497066,1737927048466,-500.0,0.00011999,2]
[350497067,1737927048475,-500.0,0.00011999,2]
[350497068,1737927048485,-500.0,0.00011999,2]
[350497069,1737927048494,-500.0,0.00011999,2]
[350497070,1737927048504,-500.0,0.00011999,2]
[350497071,1737927048514,-500.0,0.00011999,2]
[350497072,1737927048524,-500.0,0.00011999,2]
[350497073,1737927048533,-500.0,0.00011999,2]
[350497074,1737927048543,-497.62587632,0.00011999,2]
[350497075,1737927048552,-500.0,0.00011999,2]
[350497076,1737927048562,-500.0,0.00011999,2]
[350497077,1737927048571,-500.0,0.00011999,2]
[350497078,1737927048581,-500.0,0.00011999,2]
[350497079,1737927048590,-500.0,0.00011999,2]
[350497080,1737927048599,-500.0,0.00011999,2]
[350497081,1737927048609,-500.0,0.00011999,2]
[350497082,1737927048618,-513.8,0.00011999,2]
[350497083,1737927048627,-500.0,0.00011999,2]
[350497084,1737927048636,-500.0,0.00011999,2]
[350497085,1737927048645,-500.0,0.00011999,2]
[350497086,1737927048655,-500.0,0.00011999,2]
[350497087,1737927048665,-500.0,0.00011999,2]
[350497088,1737927048674,-500.0,0.00011999,2]
[350497089,1737927048684,-500.0,0.00011999,2]
[350497090,1737927048698,-500.0,0.00011999,2]
[350497091,1737927048709,-500.0,0.00011999,2]
[350497092,1737927048719,-500.0,0.00011999,2]
[350497093,1737927048729,-500.0,0.00011999,2]
[350497094,1737927048739,-500.0,0.00011999,2]
[350497095,1737927048748,-500.0,0.00011999,2]
[350497096,1737927048757,-500.0,0.00011999,2]
[350497097,1737927048768,-500.0,0.00011999,2]
[350497098,1737927048777,-500.0,0.00011999,2]
[350497099,1737927048787,-500.0,0.00011999,2]
[350497100,1737927048796,-500.0,0.00011999,2]
[350497101,1737927048806,-500.0,0.00011999,2]
[350497102,1737927048816,-500.0,0.00011999,2]
[350497103,1737927048825,-447.84556435,0.00011999,2]
[350497104,1737927048835,-500.0,0.00011999,2]
[350497105,1737927048845,-500.0,0.00011999,2]
[350497106,1737927048855,-500.0,0.00011999,2]
[350497107,1737927048865,-500.0,0.00011999,2]
[350497108,1737927048874,-500.0,0.00011999,2]
[350497109,1737927048884,-500.0,0.00011999,2]
[350497110,1737927048894,-500.0,0.00011999,2]
[350497111,1737927048903,-500.0,0.00011999,2]
[350497112,1737927048913,-500.0,0.00011999,2]
[350497113,1737927048922,-500.0,0.00011999,2]
[350497114,1737927048932,-500.0,0.00011999,2]
[350497115,1737927048941,-434.11,0.00011999,2]
[350497116,1737927048951,-500.0,0.00011999,2]
[350497117,1737927048960,-500.0,0.00011999,2]
[350497118,1737927048970,-500.0,0.00011999,2]
[350497119,1737927048979,-500.0,0.00011999,2]
[350497120,1737927048990,-500.0,0.00011999,2]
[350497121,1737927049000,-500.0,0.00011999,2]
[350497122,1737927049010,-500.0,0.00011999,2]
[350497123,1737927049020,-500.0,0.00011999,2]
[350497124,1737927049029,-500.0,0.00011999,2]
[350497125,1737927049039,-500.0,0.00011999,2]
[350497126,1737927049048,-500.0,0.00011999,2]
[350497127,1737927049057,-500.0,0.00011999,2]
[350497128,1737927049067,-500.0,0.00011999,2]
[350497129,1737927049076,-262.01651649,0.00011999,2]
[350497130,1737927049086,-500.0,0.00011999,2]
[350497131,1737927049095,-500.0,0.00011999,2]
[350497132,1737927049105,-500.0,0.00011999,2]
[350497133,1737927049115,-500.0,0.00011999,2]
[350497134,1737927049124,-381.875,0.00011999,2]
[350497135,1737927049134,-500.0,0.00011999,2]
[350497136,1737927049144,-360.46,0.00011999,2]
[350497137,1737927049153,-500.0,0.00011999,2]
[350497138,1737927049162,-500.0,0.00011999,2]
[350497139,1737927049172,-500.0,0.00011999,2]
[350497140,1737927049181,-500.0,0.00011999,2]
[350497141,1737927049191,-500.0,0.00011999,2]
[350497142,1737927049200,-605.55,0.00011999,2]
[350497143,1737927049210,-500.0,0.00011999,2]
[350497144,1737927049219,-500.0,0.00011999,2]
[350497145,1737927049229,-411.2,0.00011999,2]
[350497146,1737927049238,-500.0,0.00011999,2]
[350497147,1737927049247,-500.0,0.00011999,2]
[350497148,1737927049256,-500.0,0.00011999,2]
[350497149,1737927049266,-500.0,0.00011999,2]
[350497150,1737927049275,-500.0,0.00011999,2]
[350497151,1737927049284,-487.51986513,0.00011999,2]
[350497152,1737927049293,-500.0,0.00011999,2]
[350497153,1737927049303,-500.0,0.00011999,2]
[350497154,1737927049312,-500.0,0.00011999,2]
[350497155,1737927049326,-500.0,0.00011999,2]
[350497156,1737927049335,-500.0,0.00011999,2]
[350497157,1737927049344,-350.05628898,0.00011999,2]
[350497158,1737927049354,-500.0,0.00011999,2]
[350497159,1737927049363,-500.0,0.00011999,2]
[350497160,1737927049372,-500.0,0.00011999,2]
[350497161,1737927049382,-500.0,0.00011999,2]
[350497162,1737927049391,-500.0,0.00011999,2]
[350497163,1737927049400,-500.0,0.00011999,2]
[350497164,1737927049410,-500.0,0.00011999,2]
[350497165,1737927049420,-500.0,0.00011999,2]
[350497166,1737927049429,-500.0,0.00011999,2]
[350497167,1737927049439,-500.0,0.00011999,2]
[350497168,1737927049449,-500.0,0.00011999,2]
[350497169,1737927049458,-500.0,0.00011999,2]
[350497170,1737927049468,-500.0,0.00011999,2]
[350497171,1737927049477,-500.0,0.00011999,2]
[350497172,1737927049487,-500.0,0.00011999,2]
[350497173,1737927049496,-616.09,0.00011999,2]
[350497174,1737927049506,-500.0,0.00011999,2]
[350497175,1737927049515,-500.0,0.00011999,2]
[350497176,1737927049525,-500.0,0.00011999,2]
[350497177,1737927049534,-500.0,0.00011999,2]
[350497178,1737927049544,-690.61,0.00011999,2]
[350497179,1737927049553,-690.61,0.00011999,2]
[350497180,1737927049563,-690.61,0.00011999,2]
[350497181,1737927049573,-690.61,0.00011999,2]
[350497182,1737927049582,-690.61,0.00011999,2]
[350497183,1737927049591,-690.61,0.00011999,2]
[350497184,1737927049600,-690.61,0.00011999,2]
[350497185,1737927049610,-690.61,0.00011999,2]
[350497186,1737927049619,-690.61,0.00011999,2]
[350497187,1737927049629,-690.61,0.00011999,2]
[350497188,1737927049638,-690.61,0.00011999,2]
[350497189,1737927049648,-690.61,0.00011999,2]
[350497190,1737927049657,-690.61,0.00011999,2]
[350497191,1737927049666,-690.61,0.00011999,2]
[350497192,1737927049675,-690.61,0.00011999,2]
[350497193,1737927049685,-690.61,0.00011999,2]
[350497194,1737927049696,-690.61,0.00011999,2]
[350497195,1737927049705,-690.61,0.00011999,2]
[350497196,1737927049715,-690.61,0.00011999,2]
[350497197,1737927049724,-690.61,0.00011999,2]
[350497198,1737927049735,-690.61,0.00011999,2]
[350497199,1737927049744,-690.66,0.00011999,2]
[350497200,1737927049753,-500.0,0.00011999,2]
[350497201,1737927049762,-500.0,0.00011999,2]
[350497202,1737927049773,-500.0,0.00011999,2]
[350497203,1737927049782,-500.0,0.00011999,2]
[350497204,1737927049791,-500.0,0.00011999,2]
[350497205,1737927049800,-500.0,0.00011999,2]
[350497206,1737927049811,-181.02,0.00011999,2]
[350497207,1737927049821,-500.0,0.00011999,2]
[350497208,1737927049831,-500.0,0.00011999,2]
[350497209,1737927049840,-500.0,0.00011999,2]
[350497210,1737927049850,-500.0,0.00011999,2]
[350497211,1737927049860,-588.36413449,0.00011999,2]
[350497212,1737927049871,-500.0,0.00011999,2]
[350497213,1737927049881,-500.0,0.00011999,2]
[350497214,1737927049891,-500.0,0.00011999,2]
[350497215,1737927049900,-500.0,0.00011999,2]
[350497216,1737927049910,-500.0,0.00011999,2]
[350497217,1737927049920,-500.0,0.00011999,2]
[350497218,1737927049930,-500.0,0.00011999,2]
[350497219,1737927049939,-500.0,0.00011999,2]
[350497220,1737927049949,-500.0,0.00011999,2]
[350497221,1737927049959,-500.0,0.00011999,2]
[350497222,1737927049968,-500.0,0.00011999,2]
[350497223,1737927049978,-500.0,0.00011999,2]
[350497224,1737927049988,-500.0,0.00011999,2]
[350497225,1737927049997,-500.0,0.00011999,2]
[350497226,1737927050007,-500.0,0.00011999,2]
[350497227,1737927050017,-500.0,0.00011999,2]
[350497228,1737927050027,-500.0,0.00011999,2]
[350497229,1737927050036,-500.0,0.00011999,2]
[350497230,1737927050046,-500.0,0.00011999,2]
[350497231,1737927050056,-500.0,0.00011999,2]
[350497232,1737927050065,-500.0,0.00011999,2]
[350497233,1737927050074,-500.0,0.00011999,2]
[350497234,1737927050084,-500.0,0.00011999,2]
[350497235,1737927050094,-500.0,0.00011999,2]
[350497236,1737927050104,-500.0,0.00011999,2]
[350497237,1737927050114,-500.0,0.00011999,2]
[350497238,1737927050124,-500.0,0.00011999,2]
[350497239,1737927050134,-500.0,0.00011999,2]
[350497240,1737927050145,-287.71,0.00011999,2]
[350497241,1737927050155,-500.0,0.00011999,2]
[350497242,1737927050165,-500.0,0.00011999,2]
[350497243,1737927050178,-500.0,0.00011999,2]
[350497244,1737927050188,-500.0,0.00011999,2]
[350497245,1737927050198,-500.0,0.00011999,2]
[350497246,1737927050208,-500.0,0.00011999,2]
[350497247,1737927050218,-524.26,0.00011999,2]
[350497248,1737927050228,-500.0,0.00011999,2]
[350497249,1737927050238,-500.0,0.00011999,2]
[350497250,1737927050247,-500.0,0.00011999,2]
[350497251,1737927050257,-500.0,0.00011999,2]
[350497252,1737927050267,-500.0,0.00011999,2]
[350497253,1737927050277,-500.0,0.00011999,2]
[350497254,1737927050289,-500.0,0.00011999,2]
[350497255,1737927050299,-500.0,0.00011999,2]
[350497256,1737927050310,-500.0,0.00011999,2]
[350497257,1737927050320,-500.0,0.00011999,2]
[350497258,1737927050330,-429.84,0.00011999,2]
[350497259,1737927050339,-500.0,0.00011999,2]
[350497260,1737927050349,-500.0,0.00011999,2]
[350497261,1737927050359,-500.0,0.00011999,2]
[350497262,1737927050368,-500.0,0.00011999,2]
[350497263,1737927050378,-500.0,0.00011999,2]
[350497264,1737927050388,-500.0,0.00011999,2]
[350497265,1737927050398,-500.0,0.00011999,2]
[350497266,1737927050407,-191.24,0.00011999,2]
[350497267,1737927050416,-500.0,0.00011999,2]
[350497268,1737927050426,-500.0,0.00011999,2]
[350497269,1737927050436,-500.0,0.00011999,2]
[350497270,1737927050445,-500.0,0.00011999,2]
[350497271,1737927050455,-500.0,0.00011999,2]
[350497272,1737927050464,-500.0,0.00011999,2]
[350497273,1737927050474,-500.0,0.00011999,2]
[350497274,1737927050483,-500.0,0.00011999,2]
[350497275,1737927050493,-500.0,0.00011999,2]
[350497276,1737927050502,-500.0,0.00011999,2]
[350497277,1737927050512,-500.0,0.00011999,2]
[350497278,1737927050521,-500.0,0.00011999,2]
[350497279,1737927050531,-501.28032332,0.00011999,2]
[350497280,1737927050540,-500.0,0.00011999,2]
[350497281,1737927050550,-509.6,0.00011999,2]
[350497282,1737927050559,-500.0,0.00011999,2]
[350497283,1737927050568,-500.0,0.00011999,2]
[350497284,1737927050578,-500.0,0.00011999,2]
[350497285,1737927050588,-500.0,0.00011999,2]
[350497286,1737927050597,-500.0,0.00011999,2]
[350497287,1737927050607,-500.0,0.00011999,2]
[350497288,1737927050616,-500.0,0.00011999,2]
[350497289,1737927050625,-527.0,0.00012,2]
[350497290,1737927050634,-267.65745049,0.00012,2]
[350497291,1737927050644,-66445.31205725,0.00012,2]
[350497292,1737927050653,-177040.97283966,0.00012,2]
[350497293,1737927050679,-77252.81748841,0.00012,2]
[350497294,1737927050694,-19123.17349961,0.00012,2]
[350497295,1737927050705,-195249.3265685,0.00012,2]
[350497296,1737927050717,-525.38444365,0.00012,2]
[350497297,1737927050738,-298.84,0.00011999,2]
[350497298,1737927050748,-1850.68758628,0.00012,2]
[350497299,1737927050765,-257.75301172,0.00012,2]
[350497300,1737927050790,-26099.73110228,0.00012,2]
[350497301,1737927050865,-2100.47904,0.00012,2]
[350497302,1737927051044,-524.69702,0.00011998,2]
[350497303,1737927051055,-1034.51764448,0.00011998,2]
[350497304,1737927051067,-3681.30737563,0.00011998,2]
[350497305,1737927051076,-25396.50213043,0.00012,2]
[350497306,1737927051314,-2037.76213394,0.00012,2]
[350497307,1737927051330,-1626.04323,0.00012,2]
[350497308,1737927051341,-7758.97551333,0.00012,2]
[350497309,1737927060983,277.09,0.00016658,30]
[350497317,1737927603711,203.26,9.056e-05,2]
[350497330,1737927985048,263.23,0.00016658,30]
[350497338,1737928156129,-194.31,0.00010137,2]
[350497339,1737928156151,-1935.945694,0.00010744,2]
[350497385,1737928232400,-421.014306,0.00010744,2]
[350497387,1737928232410,-155.1,0.00010749,2]
[350497389,1737928232419,-250.0,0.00010771,2]
[350497391,1737928232428,-1000.0,0.00010806,2]
[350497393,1737928232438,-828.55,0.00010903,2]
[350497395,1737928232448,-500.0,0.00010932,2]
[350497397,1737928232460,-250.0,0.00011035,2]
[350497399,1737928232470,-174.77,0.00011045,2]
[350497401,1737928232479,-992.96,0.00011063,2]
[350497403,1737928232489,-150.0,0.0001108,2]
[350497405,1737928232499,-150.0,0.00011096,2]
[350497407,1737928232508,-246.3,0.00011132,2]
[350497409,1737928232518,-253.42,0.00011132,2]
[350497411,1737928232528,-252.39,0.00011132,2]
[350497413,1737928232537,-174.21,0.00011271,2]
[350497414,1737928232546,-203.26,0.0001132,2]
[350497415,1737928232555,-253.39,0.00011329,2]
[350497416,1737928232565,-247.88,0.00011329,2]
[350497417,1737928232574,-246.98,0.00011329,2]
[350497418,1737928232583,-245.05,0.00011329,2]
[350497419,1737928232592,-247.51,0.00011329,2]
[350497420,1737928232602,-251.96,0.00011329,2]
[350497421,1737928232612,-248.28,0.00011329,2]
[350497422,1737928232621,-246.51,0.00011329,2]
[350497423,1737928232630,-245.05,0.00011329,2]
[350497424,1737928232639,-251.58,0.00011329,2]
[350497425,1737928232648,-248.12,0.00011329,2]
[350497426,1737928232657,-251.16,0.00011329,2]
[350497427,1737928232668,-150.0,0.0001134,2]
[350497428,1737928232677,-922.73,0.00011341,2]
[350497429,1737928232687,-438.87,0.00011341,2]
[350497430,1737928232696,-773.77,0.00011341,2]
[350497432,1737928232705,-438.87,0.00011341,2]
[350497434,1737928232715,-438.87,0.00011341,2]
[350497436,1737928232724,-773.77,0.00011341,2]
[350497438,1737928232733,-438.87,0.00011341,2]
[350497440,1737928232742,-30373.0,0.00011526,2]
[350497442,1737928232751,-500.0,0.00011772,2]
[350497444,1737928232761,-1300.0,0.00011772,2]
[350497446,1737928232771,-1702.1308,0.00011799,2]
[350497448,1737928232780,-42705.4712179,0.000118,2]
[350497450,1737928232789,-250.18111993,0.00011826,2]
[350497452,1737928232798,-577.71060488,0.00011829,2]
[350497454,1737928232807,-250.18111993,0.00011837,2]
[350497456,1737928232816,-250.18111993,0.00011839,2]
[350497458,1737928232825,-994.95779539,0.00011841,2]
[350497460,1737928232835,-644.14734294,0.00011843,2]
[350497462,1737928232844,-3486.27423418,0.00011843,2]
[350497464,1737928232853,-250.18111992,0.00011844,2]
[350497466,1737928232862,-250.18111992,0.00011846,2]
[350497468,1737928232871,-250.18111992,0.00011846,2]
[350497470,1737928232881,-590.06116538,0.00011847,2]
[350497472,1737928232890,-577.71060488,0.00011848,2]
[350497474,1737928232899,-2576.58937175,0.00011848,2]
[350497476,1737928232908,-250.18111992,0.00011848,2]
[350497478,1737928232917,-590.06116538,0.00011852,2]
[350497480,1737928232927,-994.95779539,0.00011855,2]
[350497482,1737928232936,-577.71060488,0.00011857,2]
[350497484,1737928232945,-2576.58937175,0.00011858,2]
[350497486,1737928232954,-3486.27423418,0.00011858,2]
[350497488,1737928232964,-250.18111993,0.00011858,2]
[350497490,1737928232974,-525.74120909,0.00011862,2]
[350497492,1737928232983,-2576.58937175,0.00011865,2]
[350497494,1737928232992,-250.18111993,0.00011867,2]
[350497496,1737928233002,-525.74120909,0.00011867,2]
[350497498,1737928233011,-3486.27423418,0.00011867,2]
[350497500,1737928233021,-994.95779539,0.00011868,2]
[350497502,1737928233030,-644.14734294,0.00011869,2]
[350497504,1737928233039,-644.14734294,0.00011869,2]
[350497506,1737928233051,-590.06116538,0.00011871,2]
[350497508,1737928233060,-590.06116538,0.00011874,2]
[350497510,1737928233070,-644.14734294,0.00011875,2]
[350497512,1737928233080,-994.95779539,0.00011877,2]
[350497514,1737928233089,-750.54335977,0.00011879,2]
[350497516,1737928233099,-994.95779539,0.00011879,2]
[350497518,1737928233108,-525.74120909,0.00011879,2]
[350497520,1737928233117,-1761.92868,0.0001188,2]
[350497522,1737928233127,-994.95779539,0.00011881,2]
[350497524,1737928233136,-200.0,0.00011884,2]
[350497526,1737928233145,-750.54335977,0.00011884,2]
[350497528,1737928233155,-590.06116538,0.00011886,2]
[350497530,1737928233164,-2143.39772196,0.00011887,2]
[350497532,1737928233174,-525.74120909,0.00011888,2]
[350497534,1737928233184,-750.54335977,0.00011888,2]
[350497536,1737928233194,-200.0,0.00011889,2]
[350497538,1737928233203,-750.54335977,0.00011893,2]
[350497540,1737928233213,-525.74120909,0.00011897,2]
[350497542,1737928233222,-567.0,0.00011897,2]
[350497544,1737928233232,-200.97,0.00011897,2]
[350497546,1737928233242,-150.0,0.00011897,2]
[350497548,1737928233251,-268.932,0.00011897,2]
[350497550,1737928233260,-644.14734294,0.00011897,2]
[350497552,1737928233270,-994.95779539,0.00011898,2]
[350497554,1737928233279,-4148.5058,0.00011898,2]
[350497556,1737928233288,-577.71060488,0.00011899,2]
[350497558,1737928233298,-460.9844,0.00011899,2]
[350497560,1737928233307,-3233.0558,0.00011899,2]
[350497562,1737928233316,-937.179,0.00011899,2]
[350497564,1737928233326,-157.7634086,0.00011899,2]
[350497566,1737928233335,-157.76340859,0.000119,2]
[350497568,1737928233344,-424.6865,0.000119,2]
[350497570,1737928233354,-6345.1231,0.000119,2]
[350497572,1737928233363,-827.7268,0.000119,2]
[350497574,1737928233373,-90058.38575443,0.000119,2]
[350497577,1737928233383,-746.02121868,0.000119,2]
[350497579,1737928233396,-158.47563009,0.000119,2]
[350497580,1737928233405,-158.47563008,0.000119,2]
[350497582,1737928233414,-158.47563008,0.000119,2]
[350497585,1737928233424,-158.47563008,0.000119,2]
[350497586,1737928233433,-158.47563008,0.000119,2]
[350497588,1737928233443,-158.47563008,0.000119,2]
[350497590,1737928233452,-157.76340859,0.000119,2]
[350497592,1737928233462,-2143.39772196,0.00011901,2]
[350497594,1737928233471,-994.95779539,0.00011901,2]
[350497597,1737928233482,-2143.39772196,0.00011902,2]
[350497599,1737928233491,-3486.27423418,0.00011904,2]
[350497601,1737928233501,-2143.39772196,0.00011904,2]
[350497603,1737928233511,-3486.27423418,0.00011905,2]
[350497605,1737928233520,-2143.39772196,0.00011907,2]
[350497607,1737928233530,-2576.58937175,0.00011909,2]
[350497609,1737928233539,-200.0,0.00011914,2]
[350497611,1737928233548,-2576.58937175,0.00011914,2]
[350497613,1737928233557,-994.95779539,0.00011914,2]
[350497615,1737928233567,-250.18111992,0.00011915,2]
[350497617,1737928233577,-750.54335977,0.00011915,2]
[350497619,1737928233587,-577.71060488,0.00011918,2]
[350497621,1737928233596,-994.95779539,0.00011919,2]